[Event "FRA-ch Teams Top 16-Bas 2022"]
[Site "Chartres"]
[Date "2022.06.18"]
[Round "10.1"]
[White "Van Foreest, Lucas"]
[Black "Benitah, Yohan"]
[Result "0-1"]
[ECO "D11"]
[WhiteElo "2572"]
[BlackElo "2383"]
[Annotator "TA"]
[PlyCount "120"]
[EventDate "2022.06.16"]
[EventType "team-tourn"]
[EventCountry "FRA"]
[SourceTitle "playchess.com"]
[Source "ChessBase"]
[SourceQuality "1"]
[TimeControl "40/5400+30:1800+30"]

{[%evp 9,120,9,14,11,21,23,39,25,31,27,33,29,27,20,24,17,26,28,134,128,149,145,154,107,144,45,49,45,48,37,44,-9,31,27,99,103,102,103,135,132,140,165,130,-11,-7,-201,-207,-193,-182,-196,-164,-304,-318,-328,-308,-284,-288,-287,-241,-298,-308,-286,-295,-335,-335,-384,-348,-348,-213,-327,-327,-327,-309,-347,-300,-321,-244,-314,-310,-308,-297,-419,-412,-389,-300,-459,-385,-385,-385,-385,-385,-592,-577,-1643,-476,-1598,-1100,-1020,-953,-1501,-522,-800,-780,-1368,-1366,-1609,-1594,-1407,-1431,-6027,-5987,-1664,-1137]} 1. d4 {[%emt 0:00:19]} d5 {[%emt 0:00:03]} 2. c4 {[%emt 0:00:12]} c6 {[%emt 0:00:09]} 3. Nf3 {[%emt 0:00:06]} Nf6 {[%emt 0:00:09]} 4. g3 {[%emt 0:00:33][%cal Bg2g3,Bg3g4,Bg4g5][%mdl 32]} Bf5 {[%emt 0:02:18]} 5. Nc3 {[%emt 0:00:29]} e6 {[%emt 0:00:17]} 6. Nh4 {[%emt 0:00:14] D11: Slav Defence: 3 Nf3 sidelines and 3...Nf6 4 e3 Bg4.} Bg4 {[%emt 0:03:08]} 7. h3 {[%emt 0:00:55]} Bh5 {[%emt 0:00:28]} 8. g4 {[%emt 0:00:47] White is slightly better.} Bg6 {[%emt 0:03:58]} 9. g5 {[%emt 0:01:07]} Nfd7 {[%emt 0:05:39]} 10. Nxg6 {[%emt 0:01:25]} hxg6 {[%emt 0:00:44]} 11. e4 $36 {[%emt 0:00:41][%cal Re4d5][%mdl 2048] [#] White has good play.} dxe4 $146 {[%emt 0:03:33]} ({Predecessor:} 11... Nb6 12. c5 Nc8 13. Bf4 Be7 14. Qd2 Nd7 15. h4 b6 16. b4 a5 17. cxb6 Ncxb6 18. bxa5 Rxa5 {1-0 (51) Shafigullina,Z (2140)-Nguyen,T (2280) St Petersburg 2018}) 12. a3 {[%emt 0:04:29]} Rh4 {[%emt 0:10:07]} 13. Bg2 {[%emt 0:00:38]} e5 {[%emt 0:18:09]} (13... Nb6 $11 {remains equal.}) 14. Nxe4 $16 {[%emt 0:07:37]} exd4 {[%emt 0:04:42]} 15. Qxd4 {[%emt 0:13:51]} Qa5+ {[%emt 0:03:40]} 16. Bd2 {[%emt 0:05:55]} (16. Kf1 $142) 16... Qe5 {[%emt 0:00:47] Against Nd6+} 17. Qxe5+ {[%emt 0:06:32]} (17. Qe3 $16) 17... Nxe5 $14 {[%emt 0:00:22]} 18. O-O-O {[%emt 0:00:47]} Nbd7 {[%emt 0:01:37]} 19. Bc3 {[%emt 0:01:02]} O-O-O {[%emt 0:05:58]} 20. c5 {[%emt 0:01:47]} (20. Rd4 $14) 20... Kc7 {[%emt 0:12:18]} 21. Rhe1 {[%emt 0:00:49]} Re8 {[%emt 0:00:33]} (21... Be7 $11) 22. Kc2 $16 {[%emt 0:01:32]} Re6 {[%emt 0:02:40]} 23. b4 {[%emt 0:03:02]} b6 {[%emt 0:03:28]} 24. Rd4 {[%emt 0:03:02]} f5 {[%emt 0:02:01]} 25. cxb6+ {[%emt 0:05:40]} axb6 {[%emt 0:00:48] [#]} 26. Nc5 {[%emt 0:00:36][%mdl 512]} Bxc5 $11 {[%emt 0:00:30]} 27. bxc5 {[%emt 0:00:08] This move loses the game for White.} (27. Rxh4 $11 Bxf2 28. Rxe5 $1 (28. Bxe5+ Nxe5 29. Rxe5 Rxe5 $17) 28... Nxe5 29. Rh7) 27... Rxd4 $19 {[%emt 0:00:45]} 28. cxb6+ {[%emt 0:00:28] [#]} ({Reject} 28. Bxd4 Nf3 $1 29. cxb6+ Kb7 30. Bxf3 Rxe1 31. Bxg7 Re7) 28... Kb7 $1 {[%emt 0:00:51]} 29. Bxd4 {[%emt 0:01:04]} Nf3 $1 {[%emt 0:00:02][%mdl 64] Discovered Attack, Double Attack} 30. Rd1 {[%emt 0:00:57]} (30. Bxf3 $142 Rxe1 31. Kd2) 30... Ne1+ {[%emt 0:03:18]} 31. Rxe1 {[%emt 0:03:17]} Rxe1 {[%emt 0:00:02][%mdl 4096] Endgame KRN-KB} 32. Kd2 {[%emt 0:00:26]} Rg1 {[%emt 0:00:33]} 33. Bf3 {[%emt 0:00:23]} Rxg5 {[%emt 0:00:25]} ({Inferior is} 33... Nxb6 34. h4 $17) 34. a4 {[%emt 0:00:22]} Nxb6 {[%emt 0:00:16]} 35. a5 {[%emt 0:00:14]} Nc4+ {[%emt 0:02:24]} 36. Kc3 {[%emt 0:00:06]} Nd6 {[%emt 0:02:45]} ({Weaker is} 36... Nxa5 37. h4 Rh5 38. Bxh5 gxh5 39. Bxg7 $11) 37. Bxg7 {[%emt 0:03:58]} Rg1 {[%emt 0:02:58]} 38. Kd3 {[%emt 0:03:02]} Rc1 {[%emt 0:03:07][%cal Od6e4] aiming for ...Ne4!} 39. Bb2 {[%emt 0:00:41]} (39. a6+ $142 Kxa6 40. Kd2) 39... Rb1 {[%emt 0:00:36]} 40. Kc2 {[%emt 0:00:22]} Re1 {[%emt 0:01:36]} 41. Bc3 {[%emt 0:30:41]} Re6 {[%emt 0:30:54]} 42. Bd4 {[%emt 0:00:32]} Nb5 {[%emt 0:00:00]} 43. Bc5 {[%emt 0:00:00]} Nc7 {[%emt 0:00:00]} 44. Kd3 {[%emt 0:00:00]} Ka6 {[%emt 0:00:00]} 45. Bb4 {[%emt 0:00:00]} (45. Kc4 $142) 45... Kb5 {[%emt 0:00:00]} 46. Bd2 {[%emt 0:00:00]} Na6 {[%emt 0:00:00]} 47. Bg2 {[%emt 0:00:00]} (47. Kc3 $142) 47... c5 {[%emt 0:00:00]} 48. Bf1 {[%emt 0:00:00]} Nb4+ {[%emt 0:00:00]} 49. Kc3+ {[%emt 0:00:00]} Kxa5 {[%emt 0:00:00]} 50. Kc4 {[%emt 0:00:00]} (50. Bg5 $142) 50... Kb6 {[%emt 0:00:00] Black is clearly winning.} 51. Bg2 {[%emt 0:00:00]} Nc2 {[%emt 0:07:22] Inhibits Be3.} (51... Re2 $142 52. Bxb4 cxb4) 52. Bd5 {[%emt 0:00:00]} (52. Bg5 $142 Rd6 53. Bf1) 52... Rd6 {[%emt 0:00:00] ...Na3+ is the strong threat.} 53. Bc1 {[%emt 0:00:00] Against Na3+} Nb4 {[%emt 0:00:00]} 54. Bf7 {[%emt 0:00:00]} Nc6 {[%emt 0:00:00]} (54... Nd3 $142 55. Bxg6 Ne5+ 56. Kb3 Nxg6) 55. Bb2 {[%emt 0:00:00]} g5 {[%emt 0:00:00][%cal Bg6g5,Bg5g4][%mdl 32]} 56. Kc3 {[%emt 0:00:00] Against Rd2} Rh6 {[%emt 0:00:00]} 57. Kd2 {[%emt 0:00:00]} Rxh3 {[%emt 0:00:00]} 58. Bf6 {[%emt 0:00:00]} g4 {[%emt 0:00:00] White must now prevent ...f4.} 59. Be8 {[%emt 0:00:00]} Rf3 {[%emt 0:00:00]} 60. Bh4 {[%emt 0:00:00]} c4 {[%emt 0:00:00] Weighted Error Value: White=0.75/Black=0.50} 0-1

[Event "FRA-ch Teams Top 16-Bas 2022"]
[Site "Chartres"]
[Date "2022.06.18"]
[Round "10.2"]
[White "Marzolo, Cyril"]
[Black "Piorun, Kacper"]
[Result "0-1"]
[ECO "E15"]
[WhiteElo "2376"]
[BlackElo "2635"]
[Annotator "TA"]
[PlyCount "53"]
[EventDate "2022.06.16"]
[EventType "team-tourn"]
[EventCountry "FRA"]
[SourceTitle "playchess.com"]
[Source "ChessBase"]
[SourceQuality "1"]
[TimeControl "40/5400+30:1800+30"]

{[%evp 12,53,12,11,20,6,20,0,24,18,52,-18,0,0,0,0,0,-15,-12,-3,11,-2,0,-6,0,-20,-34,-88,-91,-89,-87,-90,-99,-94,-97,-88,-93,-126,-137,-122,-121,-132,-114,-459]} 1. d4 {[%emt 0:00:04]} Nf6 {[%emt 0:00:17]} 2. c4 {[%emt 0:00:11]} e6 {[%emt 0:00:05]} 3. Nf3 {[%emt 0:02:00]} b6 {[%emt 0:00:10]} 4. g3 {[%emt 0:00:50]} Ba6 {[%emt 0:00:16]} 5. Qa4 {[%emt 0:00:45]} Bb7 {[%emt 0:00:20]} 6. Bg2 {[%emt 0:00:11]} c5 {[%emt 0:00:20]} 7. O-O {[%emt 0:00:53][%cal Od4d5]} cxd4 {[%emt 0:08:17] E15: Queen's Indian: 4 g3 sidelines, 4 g3 Ba6 and 4 g3 Bb7 early deviations.} 8. Nxd4 {[%emt 0:01:23]} Qc8 {[%emt 0:00:05]} 9. Nc3 {[%emt 0:01:20]} Bc5 $5 {[%emt 0:08:04][%mdl 4] [#] Hoping for ...Bxg2. The position is equal. An interesting side line.} 10. Rd1 {[%emt 0:02:55] [#]} a6 $146 {[%emt 0:12:53]} ({Predecessor:} 10... O-O 11. h3 Bxg2 12. Kxg2 Nc6 13. Nxc6 Qxc6+ 14. Qxc6 dxc6 15. Bg5 Rfd8 16. Rxd8+ Rxd8 {0-1 (37) Juanoobi,A (2264)-Turner,M (2506) West Bromwich 2004}) 11. Nb3 {[%emt 0:17:49]} ({White should play} 11. Bg5 $14) 11... Be7 {[%emt 0:01:57]} 12. Bf4 {[%emt 0:02:04][%cal Oc3d5]} O-O {[%emt 0:03:02]} 13. Bd6 {[%emt 0:01:50]} Bxd6 {[%emt 0:00:08]} 14. Rxd6 {[%emt 0:01:04]} Bxg2 {[%emt 0:00:54]} 15. Kxg2 {[%emt 0:00:03]} Qc7 {[%emt 0:03:31]} 16. Rdd1 {[%emt 0:13:04]} Rc8 {[%emt 0:15:59]} 17. Nd2 {[%emt 0:01:09][%cal Bb3d2,Bd2e4,Be4g5][%mdl 32]} Nc6 {[%emt 0:01:32]} 18. Nde4 {[%emt 0:18:52]} Ne8 {[%emt 0:00:05][%cal Bf6e8,Be8d6,Bd6f5][%mdl 32]} 19. f4 {[%emt 0:15:27] Prevents Ne5.} (19. Rac1 $15) 19... b5 $17 {[%emt 0:12:48]} 20. cxb5 {[%emt 0:01:17]} axb5 {[%emt 0:01:31]} 21. Qxb5 {[%emt 0:00:35]} d5 {[%emt 0:00:05][%cal Bd7d5,Bd5d4][%mdl 32] ...Rab8 is the strong threat.} 22. Ng5 {[%emt 0:08:40]} h6 {[%emt 0:02:54][%mdl 1024] Black has strong compensation.} 23. Nf3 {[%emt 0:00:18]} Nd6 {[%emt 0:01:33] Inhibits e4.} 24. Qc5 {[%emt 0:04:04] [#]} Qb8 $1 {[%emt 0:00:19] aiming for ...Ne7.} 25. Rab1 {[%emt 0:04:16]} Nf5 {[%emt 0:01:38] Strongly threatening ...d4.} 26. Qf2 {[%emt 0:01:17]} d4 $1 {[%emt 0:00:30] Against e3. Black is more active.} 27. Ra1 $2 {[%emt 0:01:39][%mdl 8192] Weighted Error Value: White=0.15 (very precise) /Black=0.05 (flawless)} 0-1

[Event "FRA-ch Teams Top 16-Bas 2022"]
[Site "Chartres"]
[Date "2022.06.18"]
[Round "10.3"]
[White "Malakhov, Vladimir"]
[Black "Crut, Aurelien"]
[Result "1/2-1/2"]
[ECO "A13"]
[WhiteElo "2652"]
[BlackElo "2355"]
[Annotator "TA"]
[PlyCount "221"]
[EventDate "2022.06.16"]
[EventType "team-tourn"]
[EventCountry "FRA"]
[SourceTitle "playchess.com"]
[Source "ChessBase"]
[SourceQuality "1"]
[TimeControl "40/5400+30:1800+30"]

{[%evp 37,221,6,36,34,38,16,31,11,14,7,27,24,55,26,31,25,24,22,70,41,85,61,93,73,99,18,68,64,80,28,23,29,26,35,72,45,45,45,60,47,47,47,48,47,49,50,72,72,72,72,72,72,72,72,72,0,0,0,43,22,25,0,0,0,0,0,0,0,0,0,0,0,8,8,2770,2705,2236,1520,3433,2487,2430,400,400,400,400,0,400,400,502,495,487,466,6617,400,400,400,400,400,400,263,2414,1137,1072,400,29955,29950,29964,29952,2708,400,29956,29958,29953,29944,1123,182,182,182,182,182,182,182,182,182,182,182,182,182,182,0,182,182,182,182,182,182,182,182,183,183,183,171,189,171,183,183,190,0,197,197,197,0,197,0,197,0,197,197,205,0,197,0,205,0,205,212,212,212,212,197,197,212,212,212,212,212,212,0,212,0,0,0,0,0,0,0]} 1. c4 {[%emt 0:00:05]} e6 {[%emt 0:00:16]} 2. Nf3 {[%emt 0:00:07]} d5 {[%emt 0:00:25]} 3. g3 {[%emt 0:00:10]} dxc4 {[%emt 0:01:37]} 4. Qa4+ {[%emt 0:00:44]} Nd7 {[%emt 0:01:37]} 5. Qxc4 {[%emt 0:00:24]} a6 {[%emt 0:03:45]} 6. Qc2 {[%emt 0:05:40]} b5 {[%emt 0:09:42]} 7. Nd4 {[%emt 0:14:06]} Bb7 {[%emt 0:04:57]} 8. Nc6 {[%emt 0:00:17]} Qg5 {[%emt 0:11:24]} 9. Bg2 {[%emt 0:01:59]} Qc5 {[%emt 0:02:03]} 10. Qxc5 {[%emt 0:00:07]} Bxc5 {[%emt 0:00:35]} 11. O-O {[%emt 0:00:06]} Ne7 {[%emt 0:05:33]} 12. Nxe7 {[%emt 0:00:06]} Bxg2 {[%emt 0:00:06]} 13. Kxg2 {[%emt 0:00:02]} Kxe7 {[%emt 0:03:41]} 14. d3 {[%emt 0:00:15]} Bd4 {[%emt 0:07:39]} 15. Nd2 {[%emt 0:03:04]} c5 {[%emt 0:04:01]} 16. Rb1 {[%emt 0:00:17]} Rhc8 {[%emt 0:04:01]} 17. b3 {[%emt 0:00:17]} Nb6 {[%emt 0:09:23]} 18. Bb2 {[%emt 0:03:24]} Nd5 {[%emt 0:06:23]} 19. Rfc1 {[%emt 0:00:19]} Bxb2 {[%emt 0:06:49]} (19... f6 {with more complications.} 20. a3 e5 21. Ne4 f5) 20. Rxb2 {[%emt 0:00:44]} Rc7 {[%emt 0:01:23]} 21. a3 {[%emt 0:04:43]} Rac8 {[%emt 0:00:18]} 22. Rbc2 {[%emt 0:00:40]} f5 {[%emt 0:03:01]} 23. h4 {[%emt 0:01:33]} Kd6 {[%emt 0:00:54]} 24. e4 {[%emt 0:10:36]} Nb6 {[%emt 0:01:04]} 25. Kf3 {[%emt 0:00:13]} g6 {[%emt 0:00:58]} 26. Ke3 {[%emt 0:00:33]} Nd7 {[%emt 0:01:36]} 27. f4 {[%emt 0:01:17]} Nb6 {[%emt 0:01:52]} (27... Ke7 $11 {deserves consideration.}) 28. Nf3 {[%emt 0:18:26]} (28. a4 $5) 28... c4 {[%emt 0:03:39]} 29. bxc4 $1 {[%emt 0:05:37]} bxc4 {[%emt 0:00:03]} 30. Rb1 {[%emt 0:00:19]} Nd7 {[%emt 0:00:45] [#]} 31. dxc4 {[%emt 0:02:16]} (31. Rxc4 $1 $16 Rxc4 32. dxc4) 31... fxe4 {[%emt 0:00:55]} (31... Ke7 $1 $11) 32. Nd2 $14 {[%emt 0:00:05]} (32. Kxe4 Rxc4+ 33. Rxc4 Rxc4+ 34. Kd3 Ra4 $15) 32... Nc5 {[%emt 0:00:59]} 33. Rbc1 {[%emt 0:02:53]} ({But not} 33. Nxe4+ Nxe4 34. Rd1+ (34. Kxe4 Rxc4+ 35. Rxc4 Rxc4+ 36. Kd3 Ra4 $11) 34... Ke7 35. Kxe4 Rxc4+ 36. Rxc4 Rxc4+ 37. Rd4 Rc3 $11) ({White should try} 33. Rb4 $16) 33... e5 $11 {[%emt 0:00:55]} 34. Nxe4+ {[%emt 0:00:05]} Nxe4 {[%emt 0:00:03]} 35. Kxe4 {[%emt 0:00:04]} exf4 {[%emt 0:00:08]} 36. Kxf4 {[%emt 0:00:04]} (36. c5+ $5 Kc6 37. Kxf4 $14 (37. gxf4 Re7+ 38. Kf3 Rd8 $11)) 36... Rf8+ {[%emt 0:01:32]} 37. Kg4 {[%emt 0:00:16]} Rf5 {[%emt 0:01:31]} 38. Rd2+ {[%emt 0:01:03]} Ke6 {[%emt 0:01:34]} 39. Rc3 {[%emt 0:03:21]} h5+ {[%emt 0:00:10]} 40. Kh3 {[%emt 0:00:01]} Rfc5 {[%emt 0:01:56]} 41. Rd4 {[%emt 0:32:39]} Rf5 {[%emt 0:15:57]} 42. Re3+ {[%emt 0:00:00]} Re5 {[%emt 0:04:22]} 43. Rxe5+ {[%emt 0:00:00]} Kxe5 {[%emt 0:00:02]} 44. Rd5+ {[%emt 0:00:00]} Ke4 {[%emt 0:02:37]} 45. Rd6 {[%emt 0:04:49]} Kf5 {[%emt 0:00:38]} 46. Rd4 {[%emt 0:00:04]} ({Better is} 46. Rxa6 $16 {Strongly threatening Ra5+.} Rxc4 47. Ra5+ Ke4 48. Rg5) 46... Ke5 $11 {[%emt 0:00:37]} 47. Rd5+ {[%emt 0:11:30]} Ke4 $1 {[%emt 0:00:07]} 48. Rg5 {[%emt 0:00:03]} Rc6 {[%emt 0:00:09]} 49. a4 {[%emt 0:00:36]} Kd4 {[%emt 0:03:37]} 50. g4 {[%emt 0:01:26]} hxg4+ {[%emt 0:03:41]} 51. Rxg4+ {[%emt 0:00:04]} Kc3 {[%emt 0:00:10]} 52. Kg3 {[%emt 0:00:58]} Kb4 {[%emt 0:00:57]} 53. c5+ {[%emt 0:00:36]} Kxc5 {[%emt 0:00:10]} 54. Kf4 {[%emt 0:00:11]} Kd5 {[%emt 0:01:41]} 55. Kg5 {[%emt 0:01:40]} Ke5 $2 {[%emt 0:01:57][%mdl 8192] [#]} (55... a5 $11) 56. a5 $1 $18 {[%emt 0:03:44]} Rd6 {[%emt 0:01:18]} 57. Kh6 {[%emt 0:01:01]} g5+ {[%emt 0:00:44]} 58. Kxg5 {[%emt 0:00:04]} Ke6 {[%emt 0:00:26]} 59. Re4+ {[%emt 0:01:47]} (59. Rf4 $142 Rd5+ 60. Kg6 Rxa5 61. h5) 59... Kf7 $18 {[%emt 0:00:15]} 60. Rf4+ {[%emt 0:00:14]} Kg7 {[%emt 0:00:13]} 61. h5 $2 {[%emt 0:00:05]} (61. Rf5 $18 {And now h5 would win.} Rg6+ 62. Kf4) 61... Rc6 $2 {[%emt 0:00:24][%mdl 8192]} (61... Rd5+ $1 $11 62. Rf5 Rd6) 62. Rf5 $18 {[%emt 0:00:06]} Rd6 {[%emt 0:00:29]} 63. Rc5 {[%emt 0:00:48]} Kh7 {[%emt 0:00:23]} 64. Kf5 {[%emt 0:00:34]} Rh6 {[%emt 0:00:41]} (64... Kg8 $142 65. Rc7 Rd5+ 66. Kg6 Rd6+ 67. Kg5 Rd5+ 68. Kg6 Rd6+ 69. Kf5 Rd5+ 70. Kf6 Rd6+ 71. Ke5 Rh6) 65. Ke4 {[%emt 0:00:54]} (65. Rc7+ $142 Kg8 66. Rb7) 65... Kg7 $18 {[%emt 0:00:17]} 66. Rg5+ {[%emt 0:00:21]} Kf7 {[%emt 0:00:13]} 67. Kd5 {[%emt 0:01:30]} Ke7 {[%emt 0:00:15]} 68. Re5+ {[%emt 0:00:35]} Kd7 $2 {[%emt 0:00:51]} (68... Kf7 69. Kd4 Kf6) 69. Ke4 {[%emt 0:00:04]} (69. Rf5 $142 Ke7 70. Ke5) 69... Rf6 {[%emt 0:00:20]} 70. Rg5 {[%emt 0:00:15]} (70. Rf5 $142 Rh6 71. Kf4) 70... Re6+ {[%emt 0:00:35]} (70... Rh6 $18 71. Re5 Rh8) 71. Kf4 {[%emt 0:01:11]} Rc6 {[%emt 0:00:38]} 72. Rg7+ {[%emt 0:01:01]} Ke8 {[%emt 0:00:11]} 73. Rg6 {[%emt 0:00:16]} (73. Kg5 $142 Kf8 74. h6) 73... Rc5 {[%emt 0:00:32]} (73... Rc4+ $18 74. Kf5 Kf7 75. Rxa6 Rc5+ 76. Kg4 Kg7 77. Rg6+ Kf7) 74. h6 {[%emt 0:00:11]} Kf7 {[%emt 0:01:08]} 75. Rxa6 {[%emt 0:00:19]} Kg8 {[%emt 0:00:25]} 76. Ra7 $2 {[%emt 0:00:19]} (76. Rg6+ Kh7 77. Ra6) 76... Kh8 $18 {[%emt 0:00:27]} 77. Ke4 {[%emt 0:00:33]} Rb5 {[%emt 0:00:16]} 78. Kd4 {[%emt 0:00:09]} Rf5 {[%emt 0:00:27]} 79. Kc4 {[%emt 0:00:03]} Rf4+ {[%emt 0:00:48]} 80. Kc5 {[%emt 0:00:45]} Rf5+ {[%emt 0:00:06]} 81. Kd6 {[%emt 0:00:05]} Rb5 {[%emt 0:00:43]} 82. Ra6 {[%emt 0:00:50]} Rf5 {[%emt 0:00:25]} 83. Ra7 {[%emt 0:01:52]} Rb5 {[%emt 0:00:04]} 84. Ke6 {[%emt 0:00:03]} Rg5 {[%emt 0:00:48]} 85. Kf7 {[%emt 0:00:46]} Rc5 {[%emt 0:00:44]} 86. Kf6 {[%emt 0:00:26]} Rd5 {[%emt 0:00:33]} 87. Ra6 {[%emt 0:00:23]} Kh7 {[%emt 0:00:21]} 88. Ra8 {[%emt 0:00:09]} Rc5 {[%emt 0:00:35]} 89. Ke6 {[%emt 0:00:11]} Rb5 {[%emt 0:00:29]} 90. Ra7+ {[%emt 0:00:07]} Kh8 {[%emt 0:00:21]} 91. Ke7 {[%emt 0:00:10]} Re5+ {[%emt 0:00:30]} 92. Kd6 $2 {[%emt 0:00:03]} (92. Kd7 $18 {a6 would kill now.} Rd5+ 93. Kc7) 92... Rf5 $2 {[%emt 0:00:25]} (92... Rb5 $1 $11 93. Kc6 Rf5 94. Kd6) 93. Kc6 $18 {[%emt 0:00:27]} Rf6+ {[%emt 0:00:17]} 94. Kc5 {[%emt 0:00:04]} Rf5+ {[%emt 0:00:05]} 95. Kd6 {[%emt 0:00:06]} Rb5 $1 {[%emt 0:00:24]} 96. Ra6 $2 {[%emt 0:01:55]} (96. Kc6 $18 Rf5 97. a6 Rf6+ 98. Kb5 Rf5+ 99. Kb6 Rf6+ 100. Kc5) 96... Kh7 $2 {[%emt 0:00:19]} (96... Rf5 $11 {and Black is okay.}) 97. Ra8 $18 {[%emt 0:00:04]} Rf5 {[%emt 0:00:38]} 98. Ra7+ {[%emt 0:00:05]} Kh8 $1 {[%emt 0:00:04]} 99. Ke6 $2 {[%emt 0:00:25]} (99. a6 $18 {White wants to mate with Re7.} Rf6+ 100. Kc7) 99... Rc5 $2 {[%emt 0:00:23]} (99... Rb5 $11 {and Black stays safe.} 100. Kd6 Rf5) 100. Kf6 $2 {[%emt 0:00:03]} (100. Ra6 $18) 100... Rc6+ $2 {[%emt 0:00:41]} (100... Rd5 $1 $11 101. Ke7 Re5+ 102. Kd6 Rf5) 101. Ke7 {[%emt 0:00:05]} Rc5 {[%emt 0:00:06]} 102. Kd7 {[%emt 0:00:05]} Rb5 {[%emt 0:00:42]} 103. a6 {[%emt 0:01:26]} Rb6 {[%emt 0:00:15]} 104. Ra8+ {[%emt 0:00:10]} Kh7 {[%emt 0:00:10]} 105. Kc7 {[%emt 0:00:02]} Rf6 {[%emt 0:02:09]} 106. Ra7 {[%emt 0:00:02]} Kh8 {[%emt 0:00:31]} 107. Ra8+ {[%emt 0:00:41]} Kh7 {[%emt 0:00:04]} 108. a7 $2 {[%emt 0:00:02]} (108. Kb7 $18 {Intending Rc8 and mate.} Rf7+ 109. Kc6 Rf6+ 110. Kc7) 108... Rf7+ $1 $11 {[%emt 0:01:18]} 109. Kc6 {[%emt 0:00:03]} Rf6+ {[%emt 0:00:05]} 110. Kd7 {[%emt 0:00:02]} Ra6 {[%emt 0:00:49]} 111. Kc7 {[%emt 0:07:25]} 1/2-1/2